[Event "Live Chess"]
[Site "Chess.com"]
[Date "2023.05.21"]
[Round "-"]
[White "LiamBellwood"]
[Black "gmnorfolk"]
[Result "1-0"]
[WhiteElo "2059"]
[BlackElo "2110"]
[TimeControl "300"]
[EndTime "18:21:19 PDT"]
[Termination "LiamBellwood won on time"]

1. d4 {[%clk 0:04:59.4]} 1... Nf6 {[%clk 0:04:57.2]} 2. Nc3 {[%clk 0:04:59]}
2... d5 {[%clk 0:04:55.5]} 3. Bf4 {[%clk 0:04:58.7]} 3... e6 {[%clk 0:04:53.9]}
4. Nb5 {[%clk 0:04:57.4]} 4... Bb4+ {[%clk 0:04:52.7]} 5. c3 {[%clk 0:04:56.5]}
5... Ba5 {[%clk 0:04:52.3]} 6. b4 {[%clk 0:04:56.2]} 6... Bb6 {[%clk 0:04:50.8]}
7. a4 {[%clk 0:04:55.9]} 7... a5 {[%clk 0:04:46.3]} 8. Nf3 {[%clk 0:04:45.9]}
8... O-O {[%clk 0:04:44.1]} 9. e3 {[%clk 0:04:45]} 9... Nc6 {[%clk 0:04:39]} 10.
Qb3 {[%clk 0:04:40.1]} 10... axb4 {[%clk 0:04:34.9]} 11. cxb4 {[%clk 0:04:38.5]}
11... Nxb4 {[%clk 0:04:29.7]} 12. Bxc7 {[%clk 0:04:29.5]} 12... Bxc7 {[%clk
0:04:22]} 13. Nxc7 {[%clk 0:04:28.8]} 13... Qxc7 {[%clk 0:04:15.6]} 14. Qxb4
{[%clk 0:04:28.1]} 14... Ne4 {[%clk 0:04:07.7]} 15. Bb5 {[%clk 0:04:14.1]} 15...
Bd7 {[%clk 0:03:59.8]} 16. O-O {[%clk 0:04:09.2]} 16... Bxb5 {[%clk 0:03:58.6]}
17. axb5 {[%clk 0:03:46.5]} 17... Rxa1 {[%clk 0:03:54.2]} 18. Rxa1 {[%clk
0:03:45.3]} 18... Rc8 {[%clk 0:03:49.5]} 19. b6 {[%clk 0:03:02.6]} 19... Qc2
{[%clk 0:03:46.4]} 20. Rf1 {[%clk 0:03:01.5]} 20... f6 {[%clk 0:03:17.1]} 21.
Qe7 {[%clk 0:03:00]} 21... Qc6 {[%clk 0:03:14.4]} 22. Qb4 {[%clk 0:02:54.5]}
22... Nd6 {[%clk 0:03:10.6]} 23. g3 {[%clk 0:02:34.7]} 23... Nc4 {[%clk
0:03:08.3]} 24. Rb1 {[%clk 0:02:31.7]} 24... Kf7 {[%clk 0:02:57]} 25. Ne1 {[%clk
0:02:28.4]} 25... e5 {[%clk 0:02:45.8]} 26. Nd3 {[%clk 0:02:27.4]} 26... Re8
{[%clk 0:02:30.3]} 27. Qb5 {[%clk 0:01:58]} 27... Re6 {[%clk 0:02:08.2]} 28. Nc5
{[%clk 0:01:44.3]} 28... Qxb5 {[%clk 0:02:01.3]} 29. Rxb5 {[%clk 0:01:40.7]}
29... Rxb6 {[%clk 0:01:58.2]} 30. Rxb6 {[%clk 0:01:38.2]} 30... Nxb6 {[%clk
0:01:57.5]} 31. Nxb7 {[%clk 0:01:38.1]} 31... Ke6 {[%clk 0:01:38.7]} 32. Nc5+
{[%clk 0:01:33.5]} 32... Kd6 {[%clk 0:01:34.5]} 33. Kf1 {[%clk 0:01:27.9]} 33...
Nc4 {[%clk 0:01:29.7]} 34. Ke2 {[%clk 0:01:26.3]} 34... e4 {[%clk 0:01:26.3]}
35. g4 {[%clk 0:01:10.4]} 35... g6 {[%clk 0:01:22]} 36. h4 {[%clk 0:01:07.6]}
36... Nb6 {[%clk 0:01:11.3]} 37. f3 {[%clk 0:01:00.8]} 37... f5 {[%clk
0:01:07.1]} 38. gxf5 {[%clk 0:00:53.5]} 38... gxf5 {[%clk 0:01:04.9]} 39. fxe4
{[%clk 0:00:51.2]} 39... dxe4 {[%clk 0:01:00.6]} 40. Nb3 {[%clk 0:00:40.6]}
40... Nd5 {[%clk 0:00:58.7]} 41. Nd2 {[%clk 0:00:38.7]} 41... Ke6 {[%clk
0:00:56.7]} 42. Nc4 {[%clk 0:00:37.9]} 42... Kf6 {[%clk 0:00:54.4]} 43. Ne5
{[%clk 0:00:36]} 43... h6 {[%clk 0:00:43.6]} 44. Kf2 {[%clk 0:00:29.7]} 44... f4
{[%clk 0:00:34.8]} 45. exf4 {[%clk 0:00:29]} 45... Kf5 {[%clk 0:00:34.1]} 46.
Nf7 {[%clk 0:00:22.8]} 46... h5 {[%clk 0:00:26.3]} 47. Kg3 {[%clk 0:00:18.7]}
47... Nxf4 {[%clk 0:00:19.7]} 48. Nh6+ {[%clk 0:00:18]} 48... Kg6 {[%clk
0:00:13.6]} 49. Kxf4 {[%clk 0:00:17.4]} 49... Kxh6 {[%clk 0:00:12.9]} 50. Kxe4
{[%clk 0:00:17]} 50... Kg6 {[%clk 0:00:12.4]} 51. Ke5 {[%clk 0:00:16.5]} 51...
Kf7 {[%clk 0:00:11.5]} 52. d5 {[%clk 0:00:15.1]} 52... Ke7 {[%clk 0:00:10.6]}
53. d6+ {[%clk 0:00:14.2]} 53... Kd7 {[%clk 0:00:09.7]} 54. Kd5 {[%clk
0:00:13.3]} 54... Kd8 {[%clk 0:00:08.7]} 55. Ke6 {[%clk 0:00:12.7]} 55... Ke8
{[%clk 0:00:07.8]} 56. Kf6 {[%clk 0:00:09.3]} 56... Kd7 {[%clk 0:00:06.9]} 57.
Kg6 {[%clk 0:00:08.4]} 57... Kxd6 {[%clk 0:00:06.5]} 58. Kxh5 {[%clk 0:00:08.3]}
58... Ke7 {[%clk 0:00:05.2]} 59. Kg6 {[%clk 0:00:08.2]} 59... Kf8 {[%clk
0:00:04.1]} 60. h5 {[%clk 0:00:07.8]} 60... Kg8 {[%clk 0:00:03.2]} 61. Kh6
{[%clk 0:00:07.5]} 61... Kh8 {[%clk 0:00:02.7]} 62. Kg6 {[%clk 0:00:07.4]} 62...
Kg8 {[%clk 0:00:02.3]} 63. h6 {[%clk 0:00:07.3]} 63... Kh8 {[%clk 0:00:01.9]}
64. Kh5 {[%clk 0:00:07.2]} 64... Kg8 {[%clk 0:00:01.6]} 65. Kg5 {[%clk
0:00:07.1]} 65... Kh8 {[%clk 0:00:01.2]} 66. Kg6 {[%clk 0:00:07]} 66... Kg8
{[%clk 0:00:00.7]} 67. Kh5 {[%clk 0:00:06.9]} 67... Kh8 {[%clk 0:00:00.4]} 68.
Kg6 {[%clk 0:00:06.8]} 68... Kg8 {[%clk 0:00:00.2]} 69. h7+ {[%clk 0:00:06.7]}
1-0

[Event "Live Chess"]
[Site "Chess.com"]
[Date "2023.05.21"]
[Round "-"]
[White "Hussamalhaidar"]
[Black "Jo1ts"]
[Result "1-0"]
[WhiteElo "1107"]
[BlackElo "830"]
[TimeControl "300"]
[EndTime "18:21:20 PDT"]
[Termination "Hussamalhaidar won on time"]

1. b3 {[%clk 0:04:54]} 1... d5 {[%clk 0:04:55.3]} 2. Bb2 {[%clk 0:04:53.2]} 2...
Nc6 {[%clk 0:04:51.8]} 3. e3 {[%clk 0:04:52]} 3... e5 {[%clk 0:04:50.1]} 4. Bb5
{[%clk 0:04:49.5]} 4... Be6 {[%clk 0:04:41.1]} 5. Bxe5 {[%clk 0:04:43.9]} 5...
a6 {[%clk 0:04:34.9]} 6. Bxc6+ {[%clk 0:04:42]} 6... bxc6 {[%clk 0:04:29.7]} 7.
Bb2 {[%clk 0:04:40.6]} 7... Nf6 {[%clk 0:04:26.1]} 8. Nf3 {[%clk 0:04:36.7]}
8... Bd6 {[%clk 0:04:14.9]} 9. Ne5 {[%clk 0:04:34.3]} 9... Bxe5 {[%clk
0:04:04.8]} 10. Bxe5 {[%clk 0:04:32.2]} 10... O-O {[%clk 0:04:02.1]} 11. f4
{[%clk 0:04:28.2]} 11... Bg4 {[%clk 0:03:56.2]} 12. Qc1 {[%clk 0:04:12.3]} 12...
Re8 {[%clk 0:03:52.6]} 13. Bb2 {[%clk 0:04:01.5]} 13... c5 {[%clk 0:03:45.9]}
14. O-O {[%clk 0:03:58.5]} 14... Ne4 {[%clk 0:03:31.9]} 15. d3 {[%clk
0:03:41.8]} 15... Nd6 {[%clk 0:03:24.3]} 16. Nc3 {[%clk 0:03:36.2]} 16... d4
{[%clk 0:03:17.7]} 17. exd4 {[%clk 0:03:28.4]} 17... cxd4 {[%clk 0:03:15.8]} 18.
Nd5 {[%clk 0:03:21]} 18... c6 {[%clk 0:03:02.4]} 19. Nb4 {[%clk 0:02:59.1]}
19... c5 {[%clk 0:02:58.6]} 20. Nc6 {[%clk 0:02:54.5]} 20... Qd7 {[%clk
0:02:40.5]} 21. Ne5 {[%clk 0:02:51.3]} 21... Qf5 {[%clk 0:02:30.3]} 22. Nxg4
{[%clk 0:02:46.6]} 22... Qxg4 {[%clk 0:02:27.9]} 23. Qd1 {[%clk 0:02:42.6]}
23... Qxd1 {[%clk 0:02:15.1]} 24. Raxd1 {[%clk 0:02:40.8]} 24... Nf5 {[%clk
0:02:14]} 25. Bc1 {[%clk 0:02:29.6]} 25... Re2 {[%clk 0:02:03.4]} 26. Rf2 {[%clk
0:02:20.8]} 26... Rxf2 {[%clk 0:01:54.4]} 27. Kxf2 {[%clk 0:02:19.4]} 27... Re8
{[%clk 0:01:49.1]} 28. Re1 {[%clk 0:02:16.7]} 28... Rxe1 {[%clk 0:01:36.4]} 29.
Kxe1 {[%clk 0:02:14.8]} 29... Nh4 {[%clk 0:01:29.6]} 30. Kf2 {[%clk 0:02:06.6]}
30... f6 {[%clk 0:01:22.5]} 31. Ba3 {[%clk 0:02:03.3]} 31... Ng6 {[%clk
0:01:12.6]} 32. g3 {[%clk 0:01:58.2]} 32... Ne7 {[%clk 0:01:10.1]} 33. Bxc5
{[%clk 0:01:56.2]} 33... Nf5 {[%clk 0:00:59.9]} 34. g4 {[%clk 0:01:50.6]} 34...
Nh6 {[%clk 0:00:54.3]} 35. h3 {[%clk 0:01:46.3]} 35... f5 {[%clk 0:00:48.8]} 36.
g5 {[%clk 0:01:43.2]} 36... Nf7 {[%clk 0:00:45.2]} 37. Bxd4 {[%clk 0:01:41.1]}
37... h6 {[%clk 0:00:42.7]} 38. gxh6 {[%clk 0:01:31.9]} 38... gxh6 {[%clk
0:00:42.6]} 39. c4 {[%clk 0:01:27.2]} 39... Nd6 {[%clk 0:00:39.4]} 40. Bb6
{[%clk 0:01:14]} 40... Kf7 {[%clk 0:00:35.1]} 41. c5 {[%clk 0:01:11]} 41... Nb5
{[%clk 0:00:30.5]} 42. c6 {[%clk 0:01:06.2]} 42... Ke7 {[%clk 0:00:29.9]} 43. d4
{[%clk 0:01:03.9]} 43... Kd6 {[%clk 0:00:27.3]} 44. c7 {[%clk 0:00:59]} 44...
Kd7 {[%clk 0:00:21.2]} 45. Ke3 {[%clk 0:00:53.1]} 45... Nxc7 {[%clk 0:00:15.9]}
46. Bxc7 {[%clk 0:00:51.7]} 46... Kxc7 {[%clk 0:00:15.8]} 47. d5 {[%clk
0:00:49.9]} 47... Kd6 {[%clk 0:00:14.9]} 48. Kd4 {[%clk 0:00:49.1]} 48... h5
{[%clk 0:00:11.9]} 49. h4 {[%clk 0:00:47.4]} 49... a5 {[%clk 0:00:09.5]} 50. a3
{[%clk 0:00:45.6]} 50... Kc7 {[%clk 0:00:07]} 51. Kc5 {[%clk 0:00:43.6]} 51...
Kd7 {[%clk 0:00:06]} 52. b4 {[%clk 0:00:42.4]} 52... Kc7 {[%clk 0:00:05]} 53. b5
{[%clk 0:00:40.8]} 53... Kb7 {[%clk 0:00:02.8]} 54. d6 {[%clk 0:00:39.5]} 54...
Kc8 {[%clk 0:00:01.2]} 55. Kc6 {[%clk 0:00:38.2]} 55... Kd8 {[%clk 0:00:00.3]}
56. d7 {[%clk 0:00:36.4]} 1-0

[Event "Live Chess"]
[Site "Chess.com"]
[Date "2023.05.21"]
[Round "-"]
[White "chessfiction"]
[Black "PaulyD81"]
[Result "1-0"]
[WhiteElo "2344"]
[BlackElo "1149"]
[TimeControl "300"]
[EndTime "18:21:20 PDT"]
[Termination "chessfiction won by checkmate"]

1. e4 {[%clk 0:04:56.7]} 1... e5 {[%clk 0:04:58]} 2. d4 {[%clk 0:04:56.6]} 2...
exd4 {[%clk 0:04:52.7]} 3. c3 {[%clk 0:04:56.5]} 3... dxc3 {[%clk 0:04:50.6]} 4.
Bc4 {[%clk 0:04:54.8]} 4... Qf6 {[%clk 0:04:34.5]} 5. Nxc3 {[%clk 0:04:48.6]}
5... Bb4 {[%clk 0:04:25.5]} 6. Ne2 {[%clk 0:04:45.5]} 6... Nc6 {[%clk
0:04:22.2]} 7. O-O {[%clk 0:04:43.3]} 7... d6 {[%clk 0:04:04.7]} 8. Nd5 {[%clk
0:04:25.2]} 8... Qd8 {[%clk 0:03:45.9]} 9. Nef4 {[%clk 0:04:15]} 9... Nf6 {[%clk
0:03:31]} 10. Nxf6+ {[%clk 0:04:06.6]} 10... Qxf6 {[%clk 0:03:24.7]} 11. Nd5
{[%clk 0:04:06.5]} 11... Qd8 {[%clk 0:03:14.3]} 12. Nxb4 {[%clk 0:04:03.5]}
12... Nxb4 {[%clk 0:03:11.1]} 13. Qb3 {[%clk 0:04:03.3]} 13... Nc6 {[%clk
0:03:02.8]} 14. Bxf7+ {[%clk 0:04:01.7]} 14... Kf8 {[%clk 0:02:46.8]} 15. Bh5
{[%clk 0:04:00.4]} 15... Qg5 {[%clk 0:02:32.9]} 16. Qf7# {[%clk 0:03:42.4]} 1-0

[Event "Live Chess"]
[Site "Chess.com"]
[Date "2023.05.21"]
[Round "-"]
[White "raminguy"]
[Black "Tushinskiy"]
[Result "0-1"]
[WhiteElo "1936"]
[BlackElo "2177"]
[TimeControl "300"]
[EndTime "18:21:37 PDT"]
[Termination "Tushinskiy won by resignation"]

1. d4 {[%clk 0:04:59.5]} 1... d5 {[%clk 0:04:56.6]} 2. Nc3 {[%clk 0:04:58.8]}
2... c6 {[%clk 0:04:56.5]} 3. Bf4 {[%clk 0:04:57.9]} 3... Nf6 {[%clk 0:04:55.1]}
4. e3 {[%clk 0:04:57.2]} 4... e6 {[%clk 0:04:54]} 5. Nf3 {[%clk 0:04:56.2]} 5...
Bd6 {[%clk 0:04:53.2]} 6. Ne5 {[%clk 0:04:55.4]} 6... Qe7 {[%clk 0:04:45.7]} 7.
Bd3 {[%clk 0:04:54.4]} 7... Nbd7 {[%clk 0:04:45]} 8. g4 {[%clk 0:04:53]} 8...
Nf8 {[%clk 0:04:43.1]} 9. g5 {[%clk 0:04:51.7]} 9... N6d7 {[%clk 0:04:42.4]} 10.
h4 {[%clk 0:04:49]} 10... Bxe5 {[%clk 0:04:40.6]} 11. dxe5 {[%clk 0:04:47.4]}
11... b5 {[%clk 0:04:37.2]} 12. h5 {[%clk 0:04:39.2]} 12... a5 {[%clk
0:04:32.9]} 13. Qf3 {[%clk 0:04:33.6]} 13... Nc5 {[%clk 0:04:29]} 14. Be2 {[%clk
0:04:16.7]} 14... Nfd7 {[%clk 0:04:26.3]} 15. g6 {[%clk 0:04:11]} 15... hxg6
{[%clk 0:04:19.8]} 16. hxg6 {[%clk 0:04:09.6]} 16... Rxh1+ {[%clk 0:04:19.7]}
17. Qxh1 {[%clk 0:04:08.5]} 17... fxg6 {[%clk 0:04:19.5]} 18. Qh8+ {[%clk
0:04:07.5]} 18... Nf8 {[%clk 0:04:18.5]} 19. O-O-O {[%clk 0:03:59.6]} 19... Ba6
{[%clk 0:04:16.3]} 20. f3 {[%clk 0:03:34.1]} 20... b4 {[%clk 0:04:10.6]} 21.
Bxa6 {[%clk 0:03:31]} 21... bxc3 {[%clk 0:04:09.3]} 22. Be2 {[%clk 0:03:13.4]}
22... cxb2+ {[%clk 0:04:09.2]} 23. Kxb2 {[%clk 0:03:11.9]} 23... Na4+ {[%clk
0:04:07.2]} 24. Kc1 {[%clk 0:03:00.9]} 24... Qa3+ {[%clk 0:04:04.6]} 25. Kd2
{[%clk 0:02:59.1]} 25... Qc3+ {[%clk 0:04:03.6]} 26. Kc1 {[%clk 0:02:57.4]}
26... Rb8 {[%clk 0:04:03]} 0-1

[Event "Live Chess"]
[Site "Chess.com"]
[Date "2023.05.21"]
[Round "-"]
[White "laminaaprod"]
[Black "LodeshChess"]
[Result "1-0"]
[WhiteElo "2264"]
[BlackElo "1184"]
[TimeControl "300"]
[EndTime "18:22:07 PDT"]
[Termination "laminaaprod won by resignation"]

1. d4 {[%clk 0:04:55.5]} 1... Nf6 {[%clk 0:04:57.9]} 2. c4 {[%clk 0:04:55]} 2...
e6 {[%clk 0:04:56.6]} 3. Nf3 {[%clk 0:04:54.1]} 3... Bb4+ {[%clk 0:04:56]} 4.
Bd2 {[%clk 0:04:53.1]} 4... Bxd2+ {[%clk 0:04:55.3]} 5. Nbxd2 {[%clk 0:04:53]}
5... O-O {[%clk 0:04:54.5]} 6. e3 {[%clk 0:04:52.9]} 6... d5 {[%clk 0:04:51.5]}
7. Bd3 {[%clk 0:04:52.8]} 7... dxc4 {[%clk 0:04:50.1]} 8. Bxc4 {[%clk
0:04:52.7]} 8... b6 {[%clk 0:04:43]} 9. O-O {[%clk 0:04:51.9]} 9... Bb7 {[%clk
0:04:42.5]} 10. Bd3 {[%clk 0:04:51.6]} 10... Nc6 {[%clk 0:04:38.2]} 11. Qe2
{[%clk 0:04:51.1]} 11... Nb4 {[%clk 0:04:33.7]} 12. Bb1 {[%clk 0:04:49.4]} 12...
Nbd5 {[%clk 0:04:23.8]} 13. e4 {[%clk 0:04:48.4]} 13... Nf4 {[%clk 0:04:18.6]}
14. Qe3 {[%clk 0:04:48]} 14... Ng6 {[%clk 0:04:12.9]} 15. h3 {[%clk 0:04:46.7]}
15... c5 {[%clk 0:03:56.9]} 16. Rd1 {[%clk 0:04:45.8]} 16... cxd4 {[%clk
0:03:55.7]} 17. Nxd4 {[%clk 0:04:45.7]} 17... Qc7 {[%clk 0:03:28.1]} 18. N2f3
{[%clk 0:04:44.9]} 18... Qc6 {[%clk 0:03:08.4]} 19. Nxc6 {[%clk 0:04:43.9]} 1-0

[Event "Live Chess"]
[Site "Chess.com"]
[Date "2023.05.21"]
[Round "-"]
[White "garyjc"]
[Black "Conradical12"]
[Result "0-1"]
[WhiteElo "1035"]
[BlackElo "1651"]
[TimeControl "300"]
[EndTime "18:22:23 PDT"]
[Termination "Conradical12 won by resignation"]

1. e4 {[%clk 0:04:57]} 1... e5 {[%clk 0:04:59.5]} 2. Nf3 {[%clk 0:04:55]} 2...
Nc6 {[%clk 0:04:59.1]} 3. d4 {[%clk 0:04:53.9]} 3... exd4 {[%clk 0:04:56.7]} 4.
Nxd4 {[%clk 0:04:52.5]} 4... Nf6 {[%clk 0:04:55.4]} 5. Nc3 {[%clk 0:04:46]} 5...
Bc5 {[%clk 0:04:50.5]} 6. Nb3 {[%clk 0:04:40.7]} 6... Bb6 {[%clk 0:04:49]} 7.
Nd5 {[%clk 0:04:32]} 7... O-O {[%clk 0:04:45]} 8. Nxb6 {[%clk 0:04:13.4]} 8...
cxb6 {[%clk 0:04:39.9]} 9. f3 {[%clk 0:04:02.7]} 9... d6 {[%clk 0:04:35.1]} 10.
Bg5 {[%clk 0:03:56.7]} 10... h6 {[%clk 0:04:30.4]} 11. Bh4 {[%clk 0:03:52.1]}
11... Re8 {[%clk 0:04:23.2]} 12. Bd3 {[%clk 0:03:40.4]} 12... Nxe4 {[%clk
0:03:59.9]} 13. Bxd8 {[%clk 0:03:28.1]} 13... Nc3+ {[%clk 0:03:58.3]} 14. Kd2
{[%clk 0:03:25.1]} 14... Nxd1 {[%clk 0:03:56.9]} 15. Rhxd1 {[%clk 0:03:23.3]}
15... Rxd8 {[%clk 0:03:55.9]} 16. Re1 {[%clk 0:03:15.1]} 16... Be6 {[%clk
0:03:52.9]} 17. c3 {[%clk 0:03:09.3]} 17... Ne5 {[%clk 0:03:34.3]} 18. Nd4
{[%clk 0:02:43.7]} 18... Bc4 {[%clk 0:03:21.4]} 19. Re3 {[%clk 0:02:14.7]} 19...
Bxd3 {[%clk 0:03:17.1]} 20. Rxd3 {[%clk 0:02:12.2]} 20... Nxd3 {[%clk
0:03:13.4]} 21. Kxd3 {[%clk 0:02:11.3]} 21... Re8 {[%clk 0:03:10.3]} 22. Nf5
{[%clk 0:02:04.5]} 22... Re5 {[%clk 0:03:07.9]} 23. Nxd6 {[%clk 0:02:01.8]}
23... Rd5+ {[%clk 0:03:06.8]} 24. Kc4 {[%clk 0:01:54.1]} 24... Rxd6 {[%clk
0:03:04.1]} 0-1

[Event "Live Chess"]
[Site "Chess.com"]
[Date "2023.05.21"]
[Round "-"]
[White "Doge_Dandolo"]
[Black "ClassyChameleon"]
[Result "1-0"]
[WhiteElo "1923"]
[BlackElo "1099"]
[TimeControl "300"]
[EndTime "18:22:28 PDT"]
[Termination "Doge_Dandolo won on time"]

1. Nf3 {[%clk 0:04:56.4]} 1... c5 {[%clk 0:04:53.9]} 2. c4 {[%clk 0:04:55.4]}
2... Nc6 {[%clk 0:04:50.4]} 3. d4 {[%clk 0:04:54.1]} 3... b6 {[%clk 0:04:45.7]}
4. g3 {[%clk 0:04:50.7]} 4... Ba6 {[%clk 0:04:41.4]} 5. Qc2 {[%clk 0:04:46.6]}
5... cxd4 {[%clk 0:04:35.5]} 6. Bg2 {[%clk 0:04:45]} 6... g6 {[%clk 0:04:22.8]}
7. b3 {[%clk 0:04:39.8]} 7... Bg7 {[%clk 0:04:19.8]} 8. Bb2 {[%clk 0:04:38.7]}
8... Nh6 {[%clk 0:04:17.2]} 9. O-O {[%clk 0:04:36.9]} 9... O-O {[%clk 0:04:16]}
10. Rd1 {[%clk 0:04:36]} 10... Nf5 {[%clk 0:04:13.9]} 11. Na3 {[%clk 0:04:31.9]}
11... e5 {[%clk 0:04:06.2]} 12. g4 {[%clk 0:04:27.8]} 12... Nh4 {[%clk
0:03:35.9]} 13. Nxh4 {[%clk 0:04:25.6]} 13... Qxh4 {[%clk 0:03:34.5]} 14. h3
{[%clk 0:04:24.2]} 14... Bb7 {[%clk 0:03:20]} 15. Nb5 {[%clk 0:04:18.4]} 15...
Qf6 {[%clk 0:03:13.7]} 16. Ba3 {[%clk 0:04:02.2]} 16... Nb4 {[%clk 0:02:35.9]}
17. Bxb4 {[%clk 0:03:55.4]} 17... Bxg2 {[%clk 0:02:35.1]} 18. Kxg2 {[%clk
0:03:54.1]} 18... a5 {[%clk 0:02:17.4]} 19. Bxf8 {[%clk 0:03:51.8]} 19... Bxf8
{[%clk 0:02:15.3]} 20. Nc7 {[%clk 0:03:45.8]} 20... Qc6+ {[%clk 0:02:10.3]} 21.
Nd5 {[%clk 0:03:42.3]} 21... d6 {[%clk 0:02:04.5]} 22. Qe4 {[%clk 0:03:38.5]}
22... Kg7 {[%clk 0:01:56.4]} 23. Qf3 {[%clk 0:03:36.9]} 23... b5 {[%clk
0:01:27.1]} 24. Rac1 {[%clk 0:03:29.2]} 24... Re8 {[%clk 0:01:16.3]} 25. cxb5
{[%clk 0:03:23.6]} 25... Qb7 {[%clk 0:01:13.5]} 26. a4 {[%clk 0:03:18.2]} 26...
Be7 {[%clk 0:01:06.9]} 27. Rc7 {[%clk 0:03:15.1]} 27... Qb8 {[%clk 0:00:37.5]}
28. Rxe7 {[%clk 0:03:08.1]} 28... Rxe7 {[%clk 0:00:36]} 29. Nxe7 {[%clk
0:03:06.8]} 29... f6 {[%clk 0:00:33.3]} 30. Nd5 {[%clk 0:03:03.8]} 30... f5
{[%clk 0:00:28.5]} 31. gxf5 {[%clk 0:03:00.8]} 31... g5 {[%clk 0:00:26.2]} 32.
Rc1 {[%clk 0:02:53.6]} 32... Kh6 {[%clk 0:00:19.2]} 33. Rc6 {[%clk 0:02:47.8]}
33... Qf8 {[%clk 0:00:14.8]} 34. f6 {[%clk 0:02:44.8]} 34... Kg6 {[%clk
0:00:12.5]} 35. f7 {[%clk 0:02:39.8]} 35... h5 {[%clk 0:00:10]} 36. b6 {[%clk
0:02:24.3]} 36... Qxf7 {[%clk 0:00:06.8]} 37. Qxf7+ {[%clk 0:02:22.4]} 37...
Kxf7 {[%clk 0:00:06.5]} 38. Rxd6 {[%clk 0:02:21.6]} 38... Ke8 {[%clk 0:00:04.8]}
39. Rc6 {[%clk 0:02:20.4]} 39... Kd7 {[%clk 0:00:04.1]} 40. Rc7+ {[%clk
0:02:19.4]} 40... Kd6 {[%clk 0:00:02.6]} 41. b7 {[%clk 0:02:17.8]} 41... Kxd5
{[%clk 0:00:01.5]} 42. b8=Q {[%clk 0:02:17.1]} 42... Kd6 {[%clk 0:00:01.2]} 43.
Qb6+ {[%clk 0:02:15.6]} 1-0

[Event "Live Chess"]
[Site "Chess.com"]
[Date "2023.05.21"]
[Round "-"]
[White "manthanit"]
[Black "Singapourfeuj"]
[Result "0-1"]
[WhiteElo "1055"]
[BlackElo "2160"]
[TimeControl "300"]
[EndTime "18:22:46 PDT"]
[Termination "Singapourfeuj won by resignation"]

1. e4 {[%clk 0:04:59.1]} 1... c5 {[%clk 0:04:57.8]} 2. Nf3 {[%clk 0:04:58.7]}
2... d6 {[%clk 0:04:56.8]} 3. d4 {[%clk 0:04:57.2]} 3... cxd4 {[%clk 0:04:56.1]}
4. Nxd4 {[%clk 0:04:56.8]} 4... Nf6 {[%clk 0:04:55.5]} 5. Nc3 {[%clk 0:04:54.9]}
5... a6 {[%clk 0:04:54.5]} 6. a3 {[%clk 0:04:54.4]} 6... g6 {[%clk 0:04:53.3]}
7. h3 {[%clk 0:04:53.5]} 7... Bg7 {[%clk 0:04:52.6]} 8. Bd3 {[%clk 0:04:52.5]}
8... Nc6 {[%clk 0:04:52]} 9. Nxc6 {[%clk 0:04:51.2]} 9... bxc6 {[%clk
0:04:51.1]} 10. O-O {[%clk 0:04:50.1]} 10... O-O {[%clk 0:04:49.9]} 11. Be3
{[%clk 0:04:46.6]} 11... Rb8 {[%clk 0:04:49]} 12. Qc1 {[%clk 0:04:45.9]} 12...
Re8 {[%clk 0:04:46.7]} 13. Bh6 {[%clk 0:04:44.6]} 13... Bh8 {[%clk 0:04:45.7]}
14. Re1 {[%clk 0:04:40.6]} 14... Be6 {[%clk 0:04:44.5]} 15. e5 {[%clk
0:04:31.5]} 15... dxe5 {[%clk 0:04:42.1]} 16. Rxe5 {[%clk 0:04:29.9]} 16... Nd5
{[%clk 0:04:37.4]} 17. Rxe6 {[%clk 0:04:05.5]} 17... fxe6 {[%clk 0:04:36.4]} 18.
Bxg6 {[%clk 0:04:04.4]} 18... Nxc3 {[%clk 0:04:26.2]} 19. Qg5 {[%clk 0:04:03.2]}
19... Bf6 {[%clk 0:04:23.1]} 20. Bxh7+ {[%clk 0:04:01.7]} 20... Kxh7 {[%clk
0:04:21.4]} 21. Qh5 {[%clk 0:03:49.9]} 21... Ne2+ {[%clk 0:04:15.7]} 22. Kh2
{[%clk 0:03:47.4]} 22... Qd5 {[%clk 0:04:10.9]} 23. Bg5+ {[%clk 0:03:43]} 23...
Kg8 {[%clk 0:04:05.3]} 24. Qg6+ {[%clk 0:03:39.6]} 24... Bg7 {[%clk 0:04:03.9]}
25. Bh6 {[%clk 0:03:35.6]} 25... Qe5+ {[%clk 0:04:02.2]} 26. g3 {[%clk
0:03:32.2]} 26... Qf6 {[%clk 0:04:00.9]} 27. Qxg7+ {[%clk 0:02:58]} 27... Qxg7
{[%clk 0:03:58.7]} 28. Bxg7 {[%clk 0:02:57.6]} 28... Kxg7 {[%clk 0:03:57.9]} 29.
Re1 {[%clk 0:02:57]} 29... Nd4 {[%clk 0:03:56.4]} 30. c3 {[%clk 0:02:55.4]}
30... Nf3+ {[%clk 0:03:55.2]} 0-1

[Event "Live Chess"]
[Site "Chess.com"]
[Date "2023.05.21"]
[Round "-"]
[White "ViktorTheCoolBoy"]
[Black "wot-not"]
[Result "1-0"]
[WhiteElo "2520"]
[BlackElo "1541"]
[TimeControl "300"]
[EndTime "18:22:51 PDT"]
[Termination "ViktorTheCoolBoy won by resignation"]

1. d4 {[%clk 0:04:58.3]} 1... Nf6 {[%clk 0:04:57.3]} 2. Bg5 {[%clk 0:04:56.4]}
2... Ne4 {[%clk 0:04:55]} 3. Bf4 {[%clk 0:04:52.9]} 3... g5 {[%clk 0:04:53.2]}
4. Bc1 {[%clk 0:04:50]} 4... Bg7 {[%clk 0:04:52.1]} 5. f3 {[%clk 0:04:44.7]}
5... Nd6 {[%clk 0:04:46.8]} 6. Bxg5 {[%clk 0:04:39.1]} 6... f6 {[%clk
0:04:43.7]} 7. Be3 {[%clk 0:04:36]} 7... Nf5 {[%clk 0:04:40.5]} 8. Bf2 {[%clk
0:04:35]} 8... d5 {[%clk 0:04:35.6]} 9. e4 {[%clk 0:04:33.1]} 9... dxe4 {[%clk
0:04:33.6]} 10. fxe4 {[%clk 0:04:32.2]} 10... Nd6 {[%clk 0:04:25.2]} 11. Nc3
{[%clk 0:04:20]} 11... O-O {[%clk 0:04:07.2]} 12. Nf3 {[%clk 0:04:15.3]} 12...
f5 {[%clk 0:04:04.1]} 13. e5 {[%clk 0:04:11.6]} 13... Ne4 {[%clk 0:04:01.2]} 14.
Bc4+ {[%clk 0:04:07.3]} 14... Kh8 {[%clk 0:03:59.3]} 15. Nxe4 {[%clk 0:04:05.5]}
15... fxe4 {[%clk 0:03:58.2]} 16. Ng5 {[%clk 0:04:04.4]} 16... e6 {[%clk
0:03:52.8]} 17. Qh5 {[%clk 0:04:01.9]} 17... h6 {[%clk 0:03:47.9]} 18. Nxe4
{[%clk 0:03:47]} 18... Nc6 {[%clk 0:03:37.4]} 19. O-O-O {[%clk 0:03:44.7]} 19...
Bd7 {[%clk 0:03:31.2]} 20. Be3 {[%clk 0:03:38.7]} 20... Be8 {[%clk 0:03:30.1]}
21. Qh3 {[%clk 0:03:37.2]} 21... Bg6 {[%clk 0:03:17.2]} 22. Bxh6 {[%clk
0:03:32.2]} 22... Bxe4 {[%clk 0:03:15.3]} 23. Bg5+ {[%clk 0:03:30.8]} 1-0